[Event "*** Titled Tuesday 3|2 Blitz"]
[Site "Chess.com"]
[Date "2016.03.01"]
[Round "1"]
[White "chessking2151"]
[Black "Hikaru"]
[Result "0-1"]
[WhiteElo "2308"]
[BlackElo "2865"]
[TimeControl "180+2"]
[EndTime "17:08:22 PST"]
[Termination "Hikaru won by resignation"]

1. e4 {[%clk 0:03:01.9]} 1... e6 {[%clk 0:02:59.8]} 2. d4 {[%clk 0:03:00.8]}
2... b6 {[%clk 0:03:01.1]} 3. Bd3 {[%clk 0:02:54.3]} 3... Bb7 {[%clk 0:03:02.1]}
4. Ne2 {[%clk 0:02:55.4]} 4... d5 {[%clk 0:03:00.1]} 5. Nbc3 {[%clk 0:02:49.2]}
5... Nf6 {[%clk 0:02:57.8]} 6. e5 {[%clk 0:02:22.7]} 6... Nfd7 {[%clk
0:02:57.7]} 7. O-O {[%clk 0:02:23.6]} 7... c5 {[%clk 0:02:56.2]} 8. dxc5 {[%clk
0:01:59.1]} 8... Bxc5 {[%clk 0:02:46.6]} 9. Bf4 {[%clk 0:01:55.2]} 9... Nc6
{[%clk 0:02:47.1]} 10. Bb5 {[%clk 0:01:51.1]} 10... O-O {[%clk 0:02:39.1]} 11.
Bxc6 {[%clk 0:01:45.6]} 11... Bxc6 {[%clk 0:02:41]} 12. Nd4 {[%clk 0:01:47.1]}
12... Bb7 {[%clk 0:02:42.2]} 13. Na4 {[%clk 0:01:41.5]} 13... Be7 {[%clk
0:02:31.2]} 14. Re1 {[%clk 0:01:36.3]} 14... Rc8 {[%clk 0:02:27.2]} 15. b3
{[%clk 0:01:06]} 15... Nc5 {[%clk 0:02:19.3]} 16. Nxc5 {[%clk 0:00:57.5]} 16...
bxc5 {[%clk 0:02:19.8]} 17. Nf3 {[%clk 0:00:57.3]} 17... d4 {[%clk 0:02:19.8]}
18. Bg3 {[%clk 0:00:52.8]} 18... Qd5 {[%clk 0:02:19]} 19. Qe2 {[%clk 0:00:52.1]}
19... c4 {[%clk 0:02:12.1]} 20. Rad1 {[%clk 0:00:51.8]} 20... d3 {[%clk
0:02:09]} 21. Qf1 {[%clk 0:00:45]} 21... Bb4 {[%clk 0:01:35.3]} 22. bxc4 {[%clk
0:00:42.5]} 22... Qxc4 {[%clk 0:01:31.5]} 23. cxd3 {[%clk 0:00:41]} 23... Qxa2
{[%clk 0:01:32.9]} 24. Ra1 {[%clk 0:00:36.5]} 24... Qd5 {[%clk 0:01:33.9]} 25.
Reb1 {[%clk 0:00:37.5]} 25... a5 {[%clk 0:01:34.5]} 26. h4 {[%clk 0:00:36.7]}
26... Ba6 {[%clk 0:01:33.6]} 27. Rd1 {[%clk 0:00:36.8]} 27... Rfd8 {[%clk
0:01:33.2]} 28. Qe2 {[%clk 0:00:34.6]} 28... Rc3 {[%clk 0:01:28.5]} 29. Ne1
{[%clk 0:00:33.6]} 29... Bb7 {[%clk 0:01:21.4]} 30. f3 {[%clk 0:00:32.5]} 30...
Bc6 {[%clk 0:01:11.6]} 31. Bf2 {[%clk 0:00:30.3]} 31... a4 {[%clk 0:01:09.3]}
32. Qb2 {[%clk 0:00:29.5]} 32... Rb3 {[%clk 0:01:09.8]} 33. Qe2 {[%clk
0:00:29.8]} 33... Bc3 {[%clk 0:01:07.6]} 34. Rac1 {[%clk 0:00:29.4]} 34... a3
{[%clk 0:01:05.6]} 35. Nc2 {[%clk 0:00:30.3]} 35... a2 {[%clk 0:01:03.4]} 36.
Ne3 {[%clk 0:00:30.2]} 36... Qa5 {[%clk 0:00:54]} 37. Nc4 {[%clk 0:00:31.2]}
37... Qa6 {[%clk 0:00:54.7]} 38. Qf1 {[%clk 0:00:27.6]} 38... Bd5 {[%clk
0:00:49.6]} 39. Nd6 {[%clk 0:00:23.1]} 39... Bxe5 {[%clk 0:00:48.3]} 40. Ne4
{[%clk 0:00:23]} 40... Bxe4 {[%clk 0:00:45.3]} 41. fxe4 {[%clk 0:00:24.1]} 41...
a1=Q {[%clk 0:00:45.1]} 42. Rxa1 {[%clk 0:00:25.3]} 42... Bxa1 {[%clk 0:00:47]}
43. Rxa1 {[%clk 0:00:27.2]} 43... Qxd3 {[%clk 0:00:48.2]} 44. Qxd3 {[%clk
0:00:28.5]} 44... Rbxd3 {[%clk 0:00:49.3]} 45. e5 {[%clk 0:00:28.8]} 45... Rd1+
{[%clk 0:00:50]} 46. Rxd1 {[%clk 0:00:29.5]} 46... Rxd1+ {[%clk 0:00:51.9]} 47.
Kh2 {[%clk 0:00:31]} 47... h5 {[%clk 0:00:51.5]} 48. Kh3 {[%clk 0:00:31.9]}
48... Rd3+ {[%clk 0:00:51.7]} 49. g3 {[%clk 0:00:32.4]} 49... Kh7 {[%clk
0:00:51.8]} 50. Kg2 {[%clk 0:00:33.7]} 50... Kg6 {[%clk 0:00:53.1]} 0-1

[Event "*** Titled Tuesday 3|2 Blitz"]
[Site "Chess.com"]
[Date "2016.03.01"]
[Round "1"]
[White "davidarenas1224"]
[Black "Fins0905"]
[Result "0-1"]
[WhiteElo "2169"]
[BlackElo "2445"]
[TimeControl "180+2"]
[EndTime "17:08:28 PST"]
[Termination "Fins0905 won by resignation"]

1. e4 {[%clk 0:02:59.9]} 1... d5 {[%clk 0:02:56.1]} 2. exd5 {[%clk 0:03:00.4]}
2... Qxd5 {[%clk 0:02:56.6]} 3. d4 {[%clk 0:03:02]} 3... e5 {[%clk 0:02:56.8]}
4. Nf3 {[%clk 0:03:00.7]} 4... Nc6 {[%clk 0:02:53]} 5. Be3 {[%clk 0:02:56.8]}
5... exd4 {[%clk 0:02:39]} 6. Nxd4 {[%clk 0:02:56.5]} 6... Nxd4 {[%clk
0:02:39.2]} 7. Qxd4 {[%clk 0:02:57.1]} 7... Nf6 {[%clk 0:02:27.9]} 8. Nc3 {[%clk
0:02:54.7]} 8... Qxd4 {[%clk 0:02:25.5]} 9. Bxd4 {[%clk 0:02:56.6]} 9... Bf5
{[%clk 0:02:14]} 10. O-O-O {[%clk 0:02:55.9]} 10... O-O-O {[%clk 0:02:07.6]} 11.
Bc4 {[%clk 0:02:56.6]} 11... Bg6 {[%clk 0:02:03.1]} 12. h4 {[%clk 0:02:55.3]}
12... h5 {[%clk 0:01:49.6]} 13. Bxa7 {[%clk 0:02:45.3]} 13... Bd6 {[%clk
0:01:31.9]} 14. Bd4 {[%clk 0:02:39.9]} 14... c6 {[%clk 0:01:26.7]} 15. Rhe1
{[%clk 0:02:25.3]} 15... Bc7 {[%clk 0:01:21]} 16. Re7 {[%clk 0:02:02.1]} 16...
Bd6 {[%clk 0:01:06.7]} 17. Re2 {[%clk 0:02:01]} 17... Bf4+ {[%clk 0:01:00.6]}
18. Kb1 {[%clk 0:01:59.9]} 18... Rd7 {[%clk 0:00:48.1]} 19. g3 {[%clk
0:01:46.6]} 19... Bc7 {[%clk 0:00:48.1]} 20. Kc1 {[%clk 0:01:46.5]} 20... Rhd8
{[%clk 0:00:37.6]} 21. Bc5 {[%clk 0:01:30.2]} 21... b5 {[%clk 0:00:31.3]} 22.
Bb3 {[%clk 0:01:26.5]} 22... Rxd1+ {[%clk 0:00:22.9]} 23. Nxd1 {[%clk
0:01:28.4]} 23... Rd7 {[%clk 0:00:17.8]} 24. Re7 {[%clk 0:01:27.5]} 24... Ne4
{[%clk 0:00:15.4]} 25. Rxd7 {[%clk 0:01:27.2]} 25... Kxd7 {[%clk 0:00:17.3]} 26.
Be3 {[%clk 0:01:28.4]} 26... Ke7 {[%clk 0:00:17.3]} 27. c3 {[%clk 0:01:29.2]}
27... Nd6 {[%clk 0:00:16.3]} 28. Bc2 {[%clk 0:01:28]} 28... Be4 {[%clk
0:00:15.6]} 29. Bxe4 {[%clk 0:01:27.9]} 29... Nxe4 {[%clk 0:00:17.5]} 30. Kc2
{[%clk 0:01:29.4]} 30... Ke6 {[%clk 0:00:18.3]} 31. Kd3 {[%clk 0:01:29.6]} 31...
f5 {[%clk 0:00:19]} 32. b3 {[%clk 0:01:29.5]} 32... Be5 {[%clk 0:00:17.5]} 33.
Bd4 {[%clk 0:01:29.2]} 33... c5 {[%clk 0:00:14.8]} 34. Bxe5 {[%clk 0:01:28.9]}
34... Kxe5 {[%clk 0:00:16.7]} 35. a4 {[%clk 0:01:29.6]} 35... c4+ {[%clk
0:00:17.1]} 36. Kc2 {[%clk 0:01:28.4]} 36... cxb3+ {[%clk 0:00:18]} 37. Kxb3
{[%clk 0:01:29.6]} 37... Nc5+ {[%clk 0:00:11.1]} 38. Kb4 {[%clk 0:01:30.3]}
38... bxa4 {[%clk 0:00:11.2]} 39. Ne3 {[%clk 0:01:22.6]} 39... Ne4 {[%clk
0:00:07.6]} 40. c4 {[%clk 0:01:18.5]} 40... Nxf2 {[%clk 0:00:07.6]} 41. Kxa4
{[%clk 0:01:19.1]} 41... Ne4 {[%clk 0:00:07.5]} 42. Kb5 {[%clk 0:01:19.7]} 42...
Nxg3 {[%clk 0:00:08.2]} 43. c5 {[%clk 0:01:21.1]} 43... f4 {[%clk 0:00:09.2]}
44. c6 {[%clk 0:01:21]} 44... fxe3 {[%clk 0:00:08.4]} 45. c7 {[%clk 0:01:21.9]}
45... Ne4 {[%clk 0:00:09.6]} 46. Kc4 {[%clk 0:01:20.3]} 46... e2 {[%clk
0:00:09.1]} 47. Kd3 {[%clk 0:01:21.8]} 47... e1=Q {[%clk 0:00:09.8]} 48. c8=Q
{[%clk 0:01:22.7]} 48... Qd2+ {[%clk 0:00:11.1]} 49. Kc4 {[%clk 0:01:23.3]}
49... Qc3+ {[%clk 0:00:12.1]} 50. Kb5 {[%clk 0:01:25.2]} 50... Qxc8 {[%clk
0:00:12.9]} 0-1

[Event "*** Titled Tuesday 3|2 Blitz"]
[Site "Chess.com"]
[Date "2016.03.01"]
[Round "1"]
[White "Gau_truc_lon"]
[Black "liczner"]
[Result "0-1"]
[WhiteElo "2147"]
[BlackElo "2402"]
[TimeControl "180+2"]
[EndTime "17:08:51 PST"]
[Termination "liczner won by resignation"]

1. e4 {[%clk 0:03:01.9]} 1... c6 {[%clk 0:02:57]} 2. Nf3 {[%clk 0:03:01.4]} 2...
d5 {[%clk 0:02:58.4]} 3. Nc3 {[%clk 0:03:02.8]} 3... Bg4 {[%clk 0:02:58.6]} 4.
Be2 {[%clk 0:03:02.9]} 4... e6 {[%clk 0:02:57]} 5. d4 {[%clk 0:03:03.7]} 5...
Nf6 {[%clk 0:02:54.4]} 6. e5 {[%clk 0:03:05.1]} 6... Nfd7 {[%clk 0:02:55.4]} 7.
h3 {[%clk 0:02:44.8]} 7... Bxf3 {[%clk 0:02:55.8]} 8. Bxf3 {[%clk 0:02:45.3]}
8... c5 {[%clk 0:02:57.2]} 9. O-O {[%clk 0:02:22.4]} 9... cxd4 {[%clk
0:02:52.6]} 10. Nb5 {[%clk 0:02:23.6]} 10... Nc6 {[%clk 0:02:47.9]} 11. Re1
{[%clk 0:02:12.9]} 11... Ndxe5 {[%clk 0:02:44.8]} 12. Bf4 {[%clk 0:02:12.9]}
12... a6 {[%clk 0:02:00.8]} 13. Bxe5 {[%clk 0:01:49.1]} 13... Nxe5 {[%clk
0:01:49.8]} 14. Rxe5 {[%clk 0:01:51]} 14... axb5 {[%clk 0:01:51.1]} 15. Qxd4
{[%clk 0:01:48.1]} 15... Be7 {[%clk 0:01:49.6]} 16. Qd3 {[%clk 0:01:18.1]} 16...
b4 {[%clk 0:01:39]} 17. Bxd5 {[%clk 0:01:08.7]} 17... O-O {[%clk 0:01:06.9]} 18.
Bxb7 {[%clk 0:00:54.5]} 18... Qc7 {[%clk 0:01:08.1]} 19. Bxa8 {[%clk 0:00:51.4]}
19... Qxe5 {[%clk 0:01:08.5]} 20. Be4 {[%clk 0:00:44.8]} 20... Qxb2 {[%clk
0:01:02]} 21. Re1 {[%clk 0:00:41.8]} 21... g6 {[%clk 0:00:59.5]} 22. Qb3 {[%clk
0:00:41]} 22... Qd4 {[%clk 0:00:58.1]} 23. Qe3 {[%clk 0:00:34.2]} 23... Qb2
{[%clk 0:00:53.9]} 24. Qb3 {[%clk 0:00:35.1]} 24... Qe5 {[%clk 0:00:54.2]} 25.
Re3 {[%clk 0:00:29.4]} 25... Bc5 {[%clk 0:00:50.6]} 26. Re2 {[%clk 0:00:30.7]}
26... Rd8 {[%clk 0:00:41.9]} 27. g3 {[%clk 0:00:32]} 27... f5 {[%clk 0:00:23.5]}
28. Qf3 {[%clk 0:00:16]} 28... fxe4 {[%clk 0:00:21.7]} 29. Rxe4 {[%clk
0:00:17.9]} 29... Qd5 {[%clk 0:00:14.1]} 30. Qg4 {[%clk 0:00:17.2]} 30... Qd1+
{[%clk 0:00:10.5]} 31. Kg2 {[%clk 0:00:18.7]} 31... Qxg4 {[%clk 0:00:11.3]} 32.
hxg4 {[%clk 0:00:20.6]} 32... Rd2 {[%clk 0:00:12.4]} 33. Rxe6 {[%clk 0:00:20]}
33... Rxf2+ {[%clk 0:00:13.2]} 34. Kh3 {[%clk 0:00:21.5]} 34... Rxc2 {[%clk
0:00:14.1]} 35. g5 {[%clk 0:00:23.1]} 35... Rxa2 {[%clk 0:00:14.4]} 36. Rc6
{[%clk 0:00:23.9]} 36... Rc2 {[%clk 0:00:14.7]} 37. Rc8+ {[%clk 0:00:25.1]}
37... Kf7 {[%clk 0:00:15.6]} 38. Rc7+ {[%clk 0:00:27]} 38... Ke6 {[%clk
0:00:16.9]} 39. Rxh7 {[%clk 0:00:27.2]} 39... b3 {[%clk 0:00:18.1]} 40. Rb7
{[%clk 0:00:28.2]} 40... b2 {[%clk 0:00:19.1]} 41. Kg4 {[%clk 0:00:29.7]} 41...
Bd4 {[%clk 0:00:19.9]} 42. Kf3 {[%clk 0:00:30.1]} 42... Rc1 {[%clk 0:00:20.8]}
43. Ke4 {[%clk 0:00:31.1]} 43... b1=Q+ {[%clk 0:00:20.4]} 0-1

[Event "*** Titled Tuesday 3|2 Blitz"]
[Site "Chess.com"]
[Date "2016.03.01"]
[Round "1"]
[White "ethylalcohol"]
[Black "pedromartinez91"]
[Result "0-1"]
[WhiteElo "1708"]
[BlackElo "2322"]
[TimeControl "180+2"]
[EndTime "17:09:09 PST"]
[Termination "pedromartinez91 won on time"]

1. e4 {[%clk 0:02:06.2]} 1... e6 {[%clk 0:02:58.7]} 2. d4 {[%clk 0:02:05.8]}
2... d5 {[%clk 0:02:59.4]} 3. Nc3 {[%clk 0:01:53.2]} 3... Bb4 {[%clk 0:02:56.5]}
4. e5 {[%clk 0:01:44.9]} 4... c5 {[%clk 0:02:56.6]} 5. Qg4 {[%clk 0:01:44.6]}
5... Ne7 {[%clk 0:02:52.8]} 6. Bd2 {[%clk 0:01:42.7]} 6... cxd4 {[%clk
0:02:32.3]} 7. Qxd4 {[%clk 0:01:37.1]} 7... Nbc6 {[%clk 0:02:32.4]} 8. Bb5
{[%clk 0:01:38.5]} 8... Bd7 {[%clk 0:02:28.5]} 9. Qg4 {[%clk 0:01:33.2]} 9...
O-O {[%clk 0:02:17.8]} 10. O-O-O {[%clk 0:01:26.9]} 10... Nxe5 {[%clk
0:02:14.1]} 11. Qe2 {[%clk 0:01:20.2]} 11... N5c6 {[%clk 0:02:00.2]} 12. Nf3
{[%clk 0:01:10.7]} 12... Rc8 {[%clk 0:01:50.2]} 13. Ng5 {[%clk 0:00:58]} 13...
h6 {[%clk 0:01:50.2]} 14. Nh3 {[%clk 0:00:46.3]} 14... Nd4 {[%clk 0:01:48.6]}
15. Qg4 {[%clk 0:00:37]} 15... Nxb5 {[%clk 0:01:41.7]} 16. Qxb4 {[%clk
0:00:34.8]} 16... Nxc3 {[%clk 0:01:37.9]} 17. Bxc3 {[%clk 0:00:35.4]} 17... b6
{[%clk 0:01:32.9]} 18. Qg4 {[%clk 0:00:31.8]} 18... Nf5 {[%clk 0:01:30.6]} 19.
Nf4 {[%clk 0:00:26.5]} 19... Qg5 {[%clk 0:01:26.8]} 20. Qxg5 {[%clk 0:00:19.9]}
20... hxg5 {[%clk 0:01:27.6]} 21. Nh5 {[%clk 0:00:20.9]} 21... f6 {[%clk
0:01:25.5]} 22. g4 {[%clk 0:00:19.6]} 22... Nd6 {[%clk 0:01:22.5]} 23. Bb4
{[%clk 0:00:19.1]} 23... Rc6 {[%clk 0:01:18.8]} 24. h4 {[%clk 0:00:20.1]} 24...
gxh4 {[%clk 0:01:17.3]} 25. Rxh4 {[%clk 0:00:20]} 25... Rfc8 {[%clk 0:01:17.2]}
26. c3 {[%clk 0:00:18.2]} 26... a5 {[%clk 0:01:07.3]} 27. Ba3 {[%clk 0:00:18.4]}
27... Nc4 {[%clk 0:01:07]} 28. Be7 {[%clk 0:00:17.4]} 28... Kf7 {[%clk
0:01:07.2]} 29. Nxg7 {[%clk 0:00:09.1]} 29... Kxe7 {[%clk 0:01:00.3]} 30. Rh7
{[%clk 0:00:08.5]} 30... Kd6 {[%clk 0:00:59.7]} 31. g5 {[%clk 0:00:03.8]} 31...
fxg5 {[%clk 0:00:58.3]} 32. Rh6 {[%clk 0:00:04.9]} 32... b5 {[%clk 0:00:20]} 33.
Nf5+ {[%clk 0:00:05.6]} 33... Kc7 {[%clk 0:00:19.4]} 34. Ne7 {[%clk 0:00:06.4]}
34... b4 {[%clk 0:00:19.7]} 35. Nxc6 {[%clk 0:00:06.9]} 35... Kxc6 {[%clk
0:00:20.8]} 36. Kc2 {[%clk 0:00:07.8]} 36... bxc3 {[%clk 0:00:21.3]} 37. bxc3
{[%clk 0:00:09.7]} 37... Rb8 {[%clk 0:00:22.4]} 38. Rg6 {[%clk 0:00:08.9]} 38...
Rb2+ {[%clk 0:00:22.6]} 39. Kc1 {[%clk 0:00:09.7]} 39... Rxf2 {[%clk 0:00:23.9]}
40. Rxg5 {[%clk 0:00:08.7]} 40... Rxa2 {[%clk 0:00:25.4]} 41. Rg8 {[%clk
0:00:06.8]} 41... a4 {[%clk 0:00:26]} 42. Rd4 {[%clk 0:00:05.8]} 42... a3 {[%clk
0:00:26.3]} 43. Ra8 {[%clk 0:00:04.2]} 43... Rh2 {[%clk 0:00:26]} 0-1

[Event "*** Titled Tuesday 3|2 Blitz"]
[Site "Chess.com"]
[Date "2016.03.01"]
[Round "1"]
[White "chesstatour"]
[Black "gumersindo"]
[Result "1-0"]
[WhiteElo "1990"]
[BlackElo "2333"]
[TimeControl "180+2"]
[EndTime "17:09:39 PST"]
[Termination "chesstatour won by resignation"]

1. c4 {[%clk 0:02:59]} 1... e5 {[%clk 0:02:59.3]} 2. Nc3 {[%clk 0:03:00.3]} 2...
Nf6 {[%clk 0:02:59.8]} 3. Nf3 {[%clk 0:03:00.1]} 3... Nc6 {[%clk 0:03:00.3]} 4.
d4 {[%clk 0:03:01.3]} 4... exd4 {[%clk 0:03:00.1]} 5. Nxd4 {[%clk 0:03:01]} 5...
Bb4 {[%clk 0:03:01.7]} 6. g3 {[%clk 0:03:00]} 6... O-O {[%clk 0:03:02.4]} 7. Bg2
{[%clk 0:03:00]} 7... Nxd4 {[%clk 0:03:00.3]} 8. Qxd4 {[%clk 0:03:00.1]} 8... d6
{[%clk 0:02:59.5]} 9. O-O {[%clk 0:02:58.9]} 9... h6 {[%clk 0:02:54.4]} 10. b3
{[%clk 0:02:30.6]} 10... Qe7 {[%clk 0:02:51.1]} 11. e3 {[%clk 0:01:53.7]} 11...
a5 {[%clk 0:02:45.3]} 12. a3 {[%clk 0:01:44.1]} 12... Bc5 {[%clk 0:02:39.3]} 13.
Qd2 {[%clk 0:01:43]} 13... c6 {[%clk 0:02:36.5]} 14. Bb2 {[%clk 0:01:40.3]}
14... Bf5 {[%clk 0:02:34.4]} 15. Rad1 {[%clk 0:01:27.7]} 15... Ne4 {[%clk
0:02:32.1]} 16. Nxe4 {[%clk 0:01:17.7]} 16... Bxe4 {[%clk 0:02:34]} 17. Bxe4
{[%clk 0:01:15.4]} 17... Qxe4 {[%clk 0:02:34.9]} 18. b4 {[%clk 0:00:47.9]} 18...
axb4 {[%clk 0:02:24.4]} 19. axb4 {[%clk 0:00:49.8]} 19... Bb6 {[%clk 0:02:23.9]}
20. Qxd6 {[%clk 0:00:36.6]} 20... Qxc4 {[%clk 0:02:21.5]} 21. Bd4 {[%clk
0:00:34.1]} 21... Rad8 {[%clk 0:02:14.5]} 22. Qe5 {[%clk 0:00:28.2]} 22... Bxd4
{[%clk 0:02:14.5]} 23. Rxd4 {[%clk 0:00:28]} 23... Rxd4 {[%clk 0:02:15.1]} 24.
Qxd4 {[%clk 0:00:27.4]} 24... Qxd4 {[%clk 0:02:16.1]} 25. exd4 {[%clk
0:00:29.3]} 25... Rd8 {[%clk 0:02:17.1]} 26. Rd1 {[%clk 0:00:30.1]} 26... Rd5
{[%clk 0:02:18.2]} 27. f3 {[%clk 0:00:26.7]} 27... Kf8 {[%clk 0:02:19.5]} 28.
Kf2 {[%clk 0:00:28.1]} 28... Ke7 {[%clk 0:02:21.1]} 29. Ke3 {[%clk 0:00:29.6]}
29... Kd7 {[%clk 0:02:22.3]} 30. g4 {[%clk 0:00:27.2]} 30... Ke6 {[%clk
0:02:21.7]} 31. Kd3 {[%clk 0:00:21.4]} 31... f5 {[%clk 0:02:22.1]} 32. Rg1
{[%clk 0:00:14.5]} 32... g5 {[%clk 0:02:21.4]} 33. Re1+ {[%clk 0:00:10.2]} 33...
Kf6 {[%clk 0:02:22.3]} 34. Re8 {[%clk 0:00:10.6]} 34... fxg4 {[%clk 0:02:20.7]}
35. fxg4 {[%clk 0:00:11.7]} 35... Rb5 {[%clk 0:02:22.2]} 36. Kc3 {[%clk
0:00:11.6]} 36... Kg6 {[%clk 0:02:20.6]} 37. Re6+ {[%clk 0:00:06.6]} 37... Kg7
{[%clk 0:02:21.4]} 38. Re7+ {[%clk 0:00:06.9]} 38... Kf6 {[%clk 0:02:21.9]} 39.
Rh7 {[%clk 0:00:08]} 39... Kg6 {[%clk 0:02:22.8]} 40. Re7 {[%clk 0:00:07.1]}
40... Kf6 {[%clk 0:02:17.8]} 41. Rd7 {[%clk 0:00:07.5]} 41... Kg6 {[%clk
0:02:07.5]} 42. Rd6+ {[%clk 0:00:06.8]} 42... Kg7 {[%clk 0:02:08.3]} 43. Kc4
{[%clk 0:00:07.9]} 43... h5 {[%clk 0:02:06.6]} 44. h3 {[%clk 0:00:08.4]} 44...
hxg4 {[%clk 0:02:06.5]} 45. hxg4 {[%clk 0:00:10.3]} 45... Kf7 {[%clk 0:02:06.9]}
46. Rh6 {[%clk 0:00:10]} 46... Rb6 {[%clk 0:02:04.9]} 47. Kc5 {[%clk 0:00:08.4]}
47... Rb5+ {[%clk 0:02:05]} 48. Kc4 {[%clk 0:00:09]} 48... Kg7 {[%clk
0:02:06.3]} 49. Rd6 {[%clk 0:00:09.1]} 49... Rb6 {[%clk 0:02:07.2]} 50. d5
{[%clk 0:00:07.9]} 50... Ra6 {[%clk 0:02:04.5]} 51. dxc6 {[%clk 0:00:08]} 51...
bxc6 {[%clk 0:02:06.1]} 52. Kc5 {[%clk 0:00:08.4]} 52... Ra1 {[%clk 0:02:07.1]}
53. Kxc6 {[%clk 0:00:07.9]} 53... Rc1+ {[%clk 0:02:07.1]} 54. Kb6 {[%clk
0:00:05.3]} 54... Rc4 {[%clk 0:02:08.3]} 55. b5 {[%clk 0:00:06.7]} 55... Rxg4
{[%clk 0:02:08.9]} 56. Kc7 {[%clk 0:00:06.5]} 56... Rc4+ {[%clk 0:02:09.5]} 57.
Kd7 {[%clk 0:00:07]} 57... g4 {[%clk 0:02:10.3]} 58. b6 {[%clk 0:00:07.7]} 58...
Rb4 {[%clk 0:02:11.4]} 59. Kc6 {[%clk 0:00:07.8]} 59... g3 {[%clk 0:02:11.1]}
60. Rd3 {[%clk 0:00:08.1]} 60... Rg4 {[%clk 0:02:10.6]} 61. b7 {[%clk
0:00:08.2]} 61... g2 {[%clk 0:02:11]} 62. b8=Q {[%clk 0:00:07.9]} 62... g1=Q
{[%clk 0:02:12.1]} 63. Rd7+ {[%clk 0:00:06.9]} 63... Kf6 {[%clk 0:02:13.2]} 64.
Qf8+ {[%clk 0:00:07.4]} 64... Kg5 {[%clk 0:02:14.3]} 65. Rg7+ {[%clk 0:00:06.4]}
65... Kh4 {[%clk 0:02:15.4]} 66. Rh7+ {[%clk 0:00:07.6]} 66... Kg3 {[%clk
0:02:16.2]} 67. Qd6+ {[%clk 0:00:08.3]} 67... Kg2 {[%clk 0:02:16.7]} 68. Qd2+
{[%clk 0:00:08.5]} 68... Qf2 {[%clk 0:02:17.2]} 69. Rh2+ {[%clk 0:00:08.1]}
69... Kxh2 {[%clk 0:02:18.2]} 70. Qxf2+ {[%clk 0:00:09.8]} 70... Rg2 {[%clk
0:02:19.6]} 71. Qf4+ {[%clk 0:00:10.9]} 71... Kg1 {[%clk 0:02:20.6]} 72. Kd5
{[%clk 0:00:12.2]} 72... Ra2 {[%clk 0:02:19.3]} 73. Qf3 {[%clk 0:00:12.1]} 73...
Ra5+ {[%clk 0:02:18.8]} 74. Kc4 {[%clk 0:00:12.9]} 74... Ra4+ {[%clk 0:02:20]}
75. Kb3 {[%clk 0:00:13.8]} 75... Ra1 {[%clk 0:02:19.6]} 76. Qe3+ {[%clk
0:00:11.7]} 76... Kf1 {[%clk 0:02:19.9]} 77. Qf4+ {[%clk 0:00:11.4]} 77... Kg2
{[%clk 0:02:21.3]} 78. Qg5+ {[%clk 0:00:10.8]} 78... Kf3 {[%clk 0:02:22]} 79.
Qf6+ {[%clk 0:00:11.3]} 79... Kg2 {[%clk 0:02:22]} 80. Qxa1 {[%clk 0:00:12.2]}
1-0

[Event "*** Titled Tuesday 3|2 Blitz"]
[Site "Chess.com"]
[Date "2016.03.01"]
[Round "1"]
[White "AlexanderL"]
[Black "Titus369"]
[Result "1/2-1/2"]
[WhiteElo "2574"]
[BlackElo "2297"]
[TimeControl "180+2"]
[EndTime "17:10:05 PST"]
[Termination "Game drawn by agreement"]

1. d4 {[%clk 0:02:59.4]} 1... d5 {[%clk 0:03:00.1]} 2. c4 {[%clk 0:02:58.9]}
2... e6 {[%clk 0:02:58.9]} 3. Nc3 {[%clk 0:02:58.4]} 3... Nf6 {[%clk 0:02:56.8]}
4. cxd5 {[%clk 0:02:58.1]} 4... exd5 {[%clk 0:02:58.7]} 5. Bg5 {[%clk
0:02:58.6]} 5... c6 {[%clk 0:02:58.3]} 6. Qc2 {[%clk 0:02:58.5]} 6... Be7 {[%clk
0:02:57.7]} 7. e3 {[%clk 0:02:59.2]} 7... O-O {[%clk 0:02:58.4]} 8. Bd3 {[%clk
0:02:59.6]} 8... Nbd7 {[%clk 0:02:57.1]} 9. Nf3 {[%clk 0:03:00]} 9... Re8 {[%clk
0:02:56.9]} 10. O-O {[%clk 0:03:00.6]} 10... Nf8 {[%clk 0:02:57.9]} 11. Rab1
{[%clk 0:03:00.2]} 11... a5 {[%clk 0:02:54.6]} 12. Rbe1 {[%clk 0:03:00.8]} 12...
g6 {[%clk 0:02:53.8]} 13. Ne5 {[%clk 0:02:59.3]} 13... Ne6 {[%clk 0:02:53.6]}
14. Bh6 {[%clk 0:03:00.2]} 14... Ng7 {[%clk 0:02:52.7]} 15. f3 {[%clk
0:02:45.8]} 15... Bf5 {[%clk 0:02:28]} 16. g4 {[%clk 0:02:43.3]} 16... Bxd3
{[%clk 0:02:27.4]} 17. Qxd3 {[%clk 0:02:44.4]} 17... Nd7 {[%clk 0:02:26.6]} 18.
f4 {[%clk 0:02:40.6]} 18... Nxe5 {[%clk 0:02:22.1]} 19. dxe5 {[%clk 0:02:39.9]}
19... f6 {[%clk 0:02:13.7]} 20. f5 {[%clk 0:02:28.2]} 20... fxe5 {[%clk
0:02:04.2]} 21. fxg6 {[%clk 0:02:27.9]} 21... Bg5 {[%clk 0:01:49.9]} 22. gxh7+
{[%clk 0:02:16.5]} 22... Kh8 {[%clk 0:01:50.5]} 23. Bxg7+ {[%clk 0:01:52.4]}
23... Kxg7 {[%clk 0:01:47.7]} 24. Qf5 {[%clk 0:01:53.5]} 24... Qe7 {[%clk
0:01:37.7]} 25. h4 {[%clk 0:01:54.3]} 25... Bxh4 {[%clk 0:01:36.2]} 26. Qh5
{[%clk 0:01:55.3]} 26... Bxe1 {[%clk 0:01:10.5]} 27. Rxe1 {[%clk 0:01:24.6]}
27... Qf7 {[%clk 0:00:56.9]} 28. Qg5+ {[%clk 0:01:20]} 28... Qg6 {[%clk
0:00:55.9]} 29. h8=Q+ {[%clk 0:01:15]} 29... Rxh8 {[%clk 0:00:53.6]} 30. Qxe5+
{[%clk 0:01:14.2]} 30... Kg8 {[%clk 0:00:46.8]} 31. Qg3 {[%clk 0:01:15.2]} 31...
Rf8 {[%clk 0:00:36.2]} 32. Ne2 {[%clk 0:01:12.5]} 32... Qh7 {[%clk 0:00:27.6]}
33. Qg2 {[%clk 0:00:59.2]} 33... Qh3 {[%clk 0:00:27.3]} 34. Nf4 {[%clk
0:00:55.8]} 34... Qxg2+ {[%clk 0:00:26.8]} 35. Kxg2 {[%clk 0:00:56.9]} 35... Rh7
{[%clk 0:00:27.5]} 36. Kg3 {[%clk 0:00:50.5]} 36... Re8 {[%clk 0:00:27]} 37. Nh5
{[%clk 0:00:50.2]} 37... Rf7 {[%clk 0:00:27.1]} 38. g5 {[%clk 0:00:50.6]} 38...
Re5 {[%clk 0:00:26.1]} 39. Nf6+ {[%clk 0:00:50]} 39... Kg7 {[%clk 0:00:27]} 40.
Kf4 {[%clk 0:00:44.8]} 40... Re6 {[%clk 0:00:24.5]} 41. Rh1 {[%clk 0:00:35.6]}
41... Rfxf6+ {[%clk 0:00:18.9]} 42. gxf6+ {[%clk 0:00:37.5]} 42... Kxf6 {[%clk
0:00:20.7]} 43. Rh6+ {[%clk 0:00:35.4]} 43... Ke7 {[%clk 0:00:21.8]} 44. Rh7+
{[%clk 0:00:36.8]} 44... Kd6 {[%clk 0:00:23.1]} 45. Rxb7 {[%clk 0:00:38.7]}
45... Re4+ {[%clk 0:00:24.1]} 46. Kf3 {[%clk 0:00:39.8]} 46... Rc4 {[%clk
0:00:24]} 47. Ke2 {[%clk 0:00:38]} 47... Rc2+ {[%clk 0:00:24.5]} 48. Kd3 {[%clk
0:00:38.8]} 48... Rc4 {[%clk 0:00:26]} 49. b3 {[%clk 0:00:37.6]} 49... Rh4
{[%clk 0:00:26.9]} 50. Ra7 {[%clk 0:00:38.3]} 50... Rh2 {[%clk 0:00:27.1]} 51.
Rxa5 {[%clk 0:00:39.1]} 51... Kc7 {[%clk 0:00:28.3]} 52. b4 {[%clk 0:00:38.5]}
52... Kb6 {[%clk 0:00:29.2]} 53. a3 {[%clk 0:00:39.7]} 53... Rb2 {[%clk
0:00:28.8]} 54. Rc5 {[%clk 0:00:39.8]} 54... Rb3+ {[%clk 0:00:29.1]} 55. Rc3
{[%clk 0:00:41]} 55... Rb1 {[%clk 0:00:30.7]} 56. Kd4 {[%clk 0:00:39.4]} 56...
Rh1 {[%clk 0:00:29.1]} 57. a4 {[%clk 0:00:21.6]} 57... Rh4+ {[%clk 0:00:27.6]}
58. Ke5 {[%clk 0:00:21.4]} 58... Rxb4 {[%clk 0:00:27]} 59. Kd6 {[%clk
0:00:22.6]} 59... Rc4 {[%clk 0:00:26.6]} 60. Rb3+ {[%clk 0:00:20.2]} 60... Ka5
{[%clk 0:00:26.5]} 61. Rb7 {[%clk 0:00:17.7]} 61... Kxa4 {[%clk 0:00:26.8]} 62.
Rb6 {[%clk 0:00:19]} 62... Re4 {[%clk 0:00:20.6]} 1/2-1/2